bitfinex/quotes_ETHUSD_20251118
["timestamp","ask_amount","ask_price","bid_price","bid_amount"]
[1763454820044,0.35539926,3054.3,3053.1,0.1809]
[1763454820269,0.52359926,3054.3,3053.1,0.1809]
[1763454820470,0.51359926,3054.3,3053.1,0.6727]
[1763454820750,0.51359926,3054.3,3053.2,0.03275252]
[1763454820946,0.1682,3054.3,3053.2,0.03275252]
[1763454821246,2.646,3054.2,3053.1,0.6727]
[1763454821447,0.282,3054.1,3053.1,0.1809]
[1763454821693,0.4502,3054.1,3053.1,0.1809]
[1763454821853,0.4502,3054.1,3053.1,0.6727]
[1763454822049,0.282,3054.1,3053.1,0.6727]
[1763454822254,1.464,3054.0,3053.1,0.6727]
[1763454823373,1.35385411,3054.4,3053.1,0.6727]
[1763454823576,1.69008468,3054.3,3053.1,0.6727]
[1763454823971,0.39428468,3054.3,3053.1,0.6727]
[1763454824183,1.464,3054.2,3053.1,0.6727]
[1763454824483,0.39428468,3054.3,3053.1,0.6727]
[1763454824484,1.464,3054.1,3053.2,0.4918]
[1763454824683,1.41173879,3054.3,3053.2,0.4918]
[1763454824848,1.464,3054.2,3053.2,0.4918]
[1763454825053,1.464,3054.2,3053.1,4.11365359]
[1763454825054,0.28757388,3054.1,3053.1,4.0809]
[1763454825603,0.1682,3054.0,3053.1,3.9]
[1763454825798,0.1682,3053.2,3053.0,0.001]
[1763454826103,0.282,3053.1,3053.0,0.001]
[1763454826567,1.18565411,3053.8,3053.0,0.001]
[1763454826763,0.49126468,3053.7,3053.1,0.1809]
[1763454827106,0.20926468,3053.7,3053.1,0.1809]
[1763454827265,0.282,3053.6,3053.1,0.1809]
[1763454827465,1.64142799,3054.1,3053.1,0.1809]
[1763454827661,1.18565411,3054.0,3053.1,0.1809]
[1763454827962,0.282,3053.9,3053.1,0.1809]
[1763454828296,0.282,3053.8,3053.1,0.1809]
[1763454828879,0.282,3053.8,3053.0,0.001]
[1763454829099,2.364,3053.7,3053.1,0.1809]
[1763454829270,2.9106,3053.6,3053.1,0.1809]
[1763454829601,2.646,3053.6,3053.1,0.1809]
[1763454829776,2.646,3053.6,3053.1,0.6727]
[1763454829983,2.646,3053.6,3053.0,0.001]
[1763454830196,2.646,3053.6,3053.1,0.1809]
[1763454830420,0.1682,3053.9,3053.1,0.1809]
[1763454830618,1.464,3053.5,3053.1,0.6727]
[1763454830918,1.464,3053.4,3053.1,0.6727]
[1763454831071,1.464,3053.4,3053.2,0.4918]
[1763454831266,1.464,3053.4,3053.3,0.4864]
[1763454832003,1.464,3053.4,3053.3,0.9782]
[1763454832814,1.464,3053.4,3053.3,0.4864]
[1763454833324,1.464,3053.4,3053.3,0.9782]
[1763454833713,1.464,3053.4,3053.0,0.001]
[1763454834115,1.464,3053.4,3053.1,0.6727]
[1763454834428,1.464,3053.3,3053.1,0.6727]
[1763454834806,1.18565411,3054.3,3053.2,0.4864]
[1763454835006,1.18565411,3054.4,3053.3,8.74971156]
[1763454835206,1.464,3054.3,3053.7,8.31145612]
[1763454835443,0.282,3054.2,3053.7,8.31145612]
[1763454835593,0.282,3054.2,3053.5,0.405504]
[1763454835798,0.282,3054.2,3053.6,0.4918]
[1763454836495,0.282,3054.2,3053.2,0.897304]
[1763454836699,0.282,3054.2,3053.2,1.09592366]
[1763454836899,0.282,3054.2,3053.3,0.4918]
[1763454837746,0.1682,3054.5,3053.3,0.4918]
[1763454837930,1.464,3054.4,3053.4,0.93974301]
[1763454838093,8.40229108,3056.0,3053.4,0.93974301]
[1763454838094,1.182,3054.3,3053.5,0.405504]
[1763454838301,1.182,3054.3,3054.2,0.1809]
[1763454838630,1.464,3054.3,3054.2,0.6673]
[1763454838947,0.002,3055.0,3054.2,1.1591]
[1763454839297,2.646,3054.9,3054.0,0.1809]
[1763454839807,2.646,3054.9,3054.0,0.6727]
[1763454840007,1.464,3054.8,3054.0,0.6727]
[1763454840230,2.646,3054.8,3054.0,0.6727]
[1763454841144,2.8142,3054.8,3053.7,0.4918]
[1763454841330,0.28142,3054.7,3053.6,0.4918]
[1763454841923,0.002,3055.0,3053.6,0.4918]
[1763454842120,2.364,3054.9,3053.9,8.31145612]
[1763454842356,2.646,3054.9,3054.0,0.03274394]
[1763454842527,1.464,3054.8,3054.1,0.6727]
[1763454843426,1.464,3054.8,3054.2,0.4918]
[1763454843822,1.464,3054.8,3053.8,0.4918]
[1763454844147,1.464,3054.8,3053.9,0.1809]
[1763454844975,0.1682,3054.9,3053.9,0.1809]
[1763454845185,2.646,3054.8,3053.9,0.1809]
[1763454845469,0.28142,3054.7,3053.9,0.6727]
[1763454846562,0.28142,3054.7,3053.0,0.001]
[1763454846563,0.1682,3054.0,3053.0,0.001]
[1763454846862,0.282,3053.9,3053.0,0.001]
[1763454847159,2.646,3053.8,3053.1,0.6439]
[1763454847458,0.282,3053.7,3053.1,0.6439]
[1763454847791,0.282,3053.7,3053.2,0.463]
[1763454848077,0.1682,3054.4,3053.2,0.463]
[1763454848299,0.23740667,3054.6,3053.6,0.4663]
[1763454848443,0.28142,3054.7,3053.6,0.4663]
[1763454848639,1.35585411,3055.0,3053.6,0.4663]
[1763454848640,0.282,3054.6,3053.7,0.463]
[1763454849143,0.282,3054.6,3053.3,8.31145612]
[1763454849144,0.1684,3055.3,3055.2,298.64414589]
[1763454849344,2.25739264,3055.3,3055.2,298.64414589]
[1763454849570,1.07539264,3055.3,3055.2,295.3177314]
[1763454849769,1.48089664,3055.3,3055.2,294.75185963]
[1763454849981,3.58480164,3055.3,3055.2,294.75185963]
[1763454850144,3.86680164,3055.3,3055.2,294.35042856]
[1763454850348,2.0887877,3055.3,3055.2,294.35042856]
[1763454851974,3.8566341,3055.3,3055.2,294.35042856]
[1763454852851,3.5746341,3055.3,3055.2,294.35042856]
[1763454853046,3.1691301,3055.3,3055.2,294.35042856]
[1763454853286,3.4501301,3055.3,3055.2,294.35042856]
[1763454854007,1.6822837,3055.3,3055.2,294.35042856]
[1763454855318,3.8556341,3055.3,3055.2,294.35042856]
[1763454855605,3.16944459,3055.3,3055.2,294.35042856]
[1763454855790,1.4012837,3055.3,3055.2,294.35042856]
[1763454856190,0.1684,3055.3,3055.2,294.35042856]
[1763454856390,0.4494,3055.3,3055.2,294.35042856]
[1763454859090,2.53839264,3055.3,3055.2,294.35042856]
[1763454859578,2.53839264,3055.3,3055.2,294.03162856]
[1763454859773,1.07539264,3055.3,3055.2,294.03162856]
[1763454859978,1.64074799,3055.3,3055.2,294.03162856]
[1763454861499,0.73375535,3055.3,3055.2,294.03162856]
[1763454862377,2.50191624,3055.3,3055.2,294.03162856]
[1763454862817,0.73375535,3055.3,3055.2,294.03162856]
[1763454863020,0.854904,3055.3,3055.2,294.03162856]
[1763454863208,5.22289664,3055.3,3055.2,294.03162856]
[1763454863410,15.90503801,3055.3,3055.2,293.4974917]
[1763454863609,13.53435276,3055.3,3055.2,267.74313994]
[1763454864032,16.48514631,3055.3,3055.2,267.74313994]
[1763454864736,13.53435276,3055.3,3055.2,267.74313994]
[1763454865033,16.20414631,3055.3,3055.2,267.74313994]
[1763454865192,13.53435276,3055.3,3055.2,267.74313994]
[1763454866990,1.07539264,3055.3,3055.2,267.74313994]
[1763454867319,1.07739264,3055.3,3055.2,267.74313994]
[1763454867521,9.66984876,3055.3,3055.2,267.74313994]
[1763454867818,10.07535276,3055.3,3055.2,267.74313994]
[1763454868420,9.79435276,3055.3,3055.2,267.74313994]
[1763454868591,10.07535276,3055.3,3055.2,267.74313994]
[1763454869089,12.43935276,3055.3,3055.2,267.74313994]
[1763454869291,12.15161621,3055.3,3055.2,267.74313994]
[1763454869508,13.61461621,3055.3,3055.2,267.74313994]
[1763454869712,11.25735276,3055.3,3055.2,267.74313994]
[1763454869912,3.84002184,3055.3,3055.2,267.74313994]
[1763454870117,1.88797225,3055.3,3055.2,267.74313994]
[1763454870334,0.1204,3055.3,3055.2,267.74313994]
[1763454870534,0.4014,3055.3,3055.2,267.74313994]
[1763454870845,0.1204,3055.3,3055.2,267.74313994]
[1763454871031,0.88573508,3055.3,3055.2,267.74313994]
[1763454871210,1.16673508,3055.3,3055.2,267.74313994]
[1763454872044,0.283,3055.3,3055.2,267.74313994]
[1763454872452,0.002,3055.3,3055.2,268.65873994]
[1763454872614,0.283,3055.3,3055.2,268.65873994]
[1763454872809,0.002,3055.3,3055.2,268.65873994]
[1763454873014,0.283,3055.3,3055.2,268.65873994]
[1763454873632,0.002,3055.3,3055.2,268.65873994]
[1763454873819,0.283,3055.3,3055.2,268.65873994]
[1763454874421,0.002,3055.3,3055.2,267.74313994]
[1763454874626,0.283,3055.3,3055.2,267.74313994]
[1763454876223,0.58985901,3055.3,3055.2,267.74313994]
[1763454876543,0.30885901,3055.3,3055.2,271.94975042]
[1763454876742,0.58985901,3055.3,3055.2,267.74313994]
[1763454877971,0.30885901,3055.3,3055.2,267.74313994]
[1763454878269,0.58985901,3055.3,3055.2,267.74313994]
[1763454879175,2.95385901,3055.3,3055.2,267.74313994]
[1763454880139,3.86085165,3055.3,3055.2,267.74313994]
[1763454880333,1.21585165,3055.3,3055.2,267.74313994]
[1763454880541,2.67885165,3055.3,3055.2,267.74313994]
[1763454880842,1.49685165,3055.3,3055.2,267.74313994]
[1763454881038,1.21585165,3055.3,3055.2,267.74313994]
[1763454881282,1.49685165,3055.3,3055.2,267.74313994]
[1763454881492,0.30885901,3055.3,3055.2,270.76514738]
[1763454881770,0.58985901,3055.3,3055.2,270.76514738]
[1763454882242,0.58985901,3055.3,3055.2,268.66583994]
[1763454882739,0.30885901,3055.3,3055.2,268.66583994]
[1763454882937,0.58985901,3055.3,3055.2,268.66583994]
[1763454883176,0.21477649,3055.3,3055.2,268.66583994]
[1763454883475,0.281,3055.3,3055.2,268.66583994]
[1763454883645,0.281,3055.3,3055.2,271.94975042]
[1763454884180,0.09083496,3056.0,3055.2,271.94975042]
[1763454884386,0.09083496,3056.0,3055.9,0.4641]
[1763454884570,0.281,3056.0,3055.9,0.4641]
[1763454884741,0.281,3056.0,3055.9,0.9227]
[1763454885248,0.0409,3057.8,3055.9,0.9227]
[1763454885457,0.0409,3058.0,3056.0,0.4586]
[1763454885656,0.0409,3057.9,3056.0,0.4586]
[1763454885867,0.0409,3057.9,3056.1,0.1858]
[1763454886281,0.8812437,3057.5,3056.2,0.4586]
[1763454886480,0.8312437,3057.6,3056.2,0.4586]
[1763454886851,0.0409,3057.6,3056.2,0.4586]
[1763454887250,0.0409,3057.5,3056.2,0.4586]
[1763454887554,1.1749916,3057.8,3056.2,0.4586]
[1763454887754,0.281,3057.7,3056.2,0.4586]
[1763454888362,0.0409,3057.6,3056.2,0.4586]
[1763454888563,1.2158916,3058.0,3056.2,0.4586]
[1763454888767,0.281,3057.5,3056.2,0.4586]
[1763454889193,2.364,3057.4,3056.2,0.4586]
[1763454889517,3.27099264,3057.4,3056.2,0.4586]
[1763454889698,2.645,3057.3,3056.2,0.4586]
[1763454890308,2.645,3057.2,3056.2,0.4586]
[1763454890699,0.0409,3057.9,3056.2,0.4586]
[1763454890890,0.90699264,3057.7,3056.2,0.4586]
[1763454891073,0.282,3057.6,3056.2,0.4586]
[1763454891609,0.281,3057.5,3056.2,0.4586]
[1763454892514,0.0409,3057.4,3056.2,0.4586]
[1763454892841,0.405504,3057.3,3056.1,0.1858]
[1763454893034,0.405504,3057.3,3055.8,0.1858]
[1763454893232,1.2158916,3057.2,3055.4,0.4586]
[1763454893379,0.405504,3057.0,3055.6,0.1858]
[1763454893886,0.0409,3056.9,3055.6,0.1858]
[1763454894127,0.686504,3056.8,3055.6,0.1858]
[1763454894289,0.405504,3056.8,3055.6,0.1858]
[1763454894617,0.3219,3056.7,3055.6,0.1858]
[1763454894828,1.2158916,3057.1,3055.6,0.6444]
[1763454894986,0.281,3056.6,3055.6,0.6444]
[1763454895188,0.30495308,3056.5,3055.6,0.6444]
[1763454895410,0.30495308,3056.4,3055.6,0.6444]
[1763454895727,0.281,3056.3,3055.7,0.4586]
[1763454896395,0.281,3056.3,3055.6,0.1858]
[1763454896928,0.30495308,3056.2,3055.6,0.1858]
[1763454897124,0.30495308,3056.1,3055.4,0.6444]
[1763454897341,0.30495308,3056.0,3055.4,0.6444]
[1763454897490,0.30495308,3056.2,3055.4,0.1858]
[1763454897833,0.30495308,3056.1,3055.4,0.1858]
[1763454897998,0.30495308,3056.0,3055.4,0.1858]
[1763454898197,0.281,3056.3,3055.4,0.1858]
[1763454898198,0.30495308,3055.9,3055.4,0.1858]
[1763454898386,0.30495308,3055.8,3055.4,0.1858]
[1763454898590,0.30495308,3055.7,3055.4,0.1858]
[1763454898932,3.72447914,3058.9,3058.8,139.68284937]
[1763454899225,6.93732727,3058.9,3058.8,62.21585971]
[1763454899525,6.74023034,3058.9,3058.8,56.94971323]
[1763454899839,1.14567114,3058.9,3058.8,52.70971323]
[1763454900131,9.83667048,3058.9,3058.8,41.52600947]
[1763454900383,10.11767048,3058.9,3058.8,37.73904142]
[1763454900491,11.7510959,3058.9,3058.8,35.61904142]
[1763454900695,11.7510959,3058.9,3058.8,33.49904142]
[1763454900931,11.7510959,3058.9,3058.8,26.55533766]
[1763454901097,11.02466312,3058.9,3058.8,23.31836961]
[1763454901291,11.02466312,3058.9,3058.8,19.97931904]
[1763454901292,16.59271072,3058.9,3058.8,19.97931904]
[1763454901493,1.41900181,3058.9,3058.8,19.97931904]
[1763454901704,9.83667048,3058.9,3058.8,19.97931904]
[1763454902004,10.11867048,3058.9,3058.8,19.97931904]
[1763454902595,9.83667048,3058.9,3058.8,19.97931904]
[1763454902796,10.11867048,3058.9,3058.8,19.97931904]
[1763454902996,8.69099934,3058.9,3058.8,19.97931904]
[1763454903427,8.97299934,3058.9,3058.8,19.97931904]
[1763454903627,9.87999198,3058.9,3058.8,19.97931904]
[1763454904327,8.97299934,3058.9,3058.8,19.97931904]
[1763454904631,9.87999198,3058.9,3058.8,19.97931904]
[1763454904805,10.28549598,3058.9,3058.8,19.97931904]
[1763454905497,10.00349598,3058.9,3058.8,19.97931904]
[1763454905697,0.282,3058.9,3058.8,19.97931904]
[1763454906531,0.687504,3058.9,3058.8,19.97931904]
[1763454907306,0.282,3058.9,3058.8,19.97931904]
[1763454909137,3.049504,3058.9,3058.8,19.97931904]
[1763454909331,3.95649664,3058.9,3058.8,19.97931904]
[1763454909841,0.00475083,3059.0,3058.8,20.95711904]
[1763454910017,0.00475083,3059.0,3058.9,0.9778]
[1763454910199,0.282,3059.0,3058.9,0.9778]
[1763454910439,0.282,3059.0,3058.9,3.0735119]
[1763454910640,4.02970516,3062.6,3058.9,3.0735119]
[1763454910641,2.34582667,3061.1,3058.9,3.0735119]
[1763454910938,3.25281931,3061.8,3059.0,0.4877]
[1763454911111,8.69099934,3061.6,3059.0,0.4877]
[1763454911316,6.54234939,3062.6,3060.0,0.1884]
[1763454911514,6.54234939,3062.6,3061.0,0.1884]
[1763454911515,0.09083496,3062.6,3061.0,0.1884]
[1763454911842,0.283,3062.5,3060.1,0.4877]
[1763454912042,0.09083496,3062.6,3060.2,0.4877]
[1763454912245,1.20956444,3062.5,3060.2,0.4877]
[1763454912416,0.09083496,3062.6,3060.2,0.4877]
[1763454912605,0.284,3062.5,3060.3,0.03267653]
[1763454912807,0.284,3062.5,3060.4,0.4877]
[1763454913006,0.284,3062.4,3060.4,0.4877]
[1763454913227,0.405504,3062.3,3060.4,0.4877]
[1763454913430,0.405504,3062.1,3060.4,0.4877]
[1763454913615,0.405504,3061.9,3060.1,0.4877]
[1763454913807,1.31249664,3061.6,3060.0,0.1884]
[1763454914007,0.405504,3061.4,3059.6,0.4877]
[1763454914236,0.405504,3061.2,3059.6,0.4877]
[1763454914547,0.405504,3061.0,3059.1,0.6761]
[1763454914844,0.90699264,3061.1,3059.2,0.03268828]
[1763454915151,0.405504,3061.8,3059.2,0.4877]
[1763454915354,0.284,3061.7,3059.5,8.69099934]
[1763454915567,0.284,3061.7,3059.6,0.86909993]
[1763454915771,1.34944368,3062.5,3059.6,1.35679993]
[1763454916076,1.34944368,3062.5,3059.7,0.4877]
[1763454916077,0.284,3062.4,3059.7,0.4877]
[1763454916440,0.09083496,3062.6,3060.1,8.69099934]
[1763454916624,0.284,3062.5,3060.2,1.54519993]
[1763454917061,0.09083496,3062.6,3060.2,1.54519993]
[1763454917062,0.284,3062.4,3060.3,0.4877]
[1763454917263,0.284,3062.3,3060.3,0.4877]
[1763454917767,0.689504,3062.2,3060.3,0.4877]
[1763454917938,0.689504,3062.2,3060.2,0.1884]
[1763454917939,0.405504,3062.0,3060.2,0.1884]
[1763454918343,0.893204,3062.0,3060.2,0.1884]
[1763454918563,8.69099934,3061.2,3059.4,0.4877]
[1763454918868,1.59649664,3061.1,3059.1,0.1884]
[1763454919031,1.31249664,3061.1,3059.1,0.6761]
[1763454919226,1.31249664,3060.9,3059.1,0.6761]
[1763454919440,0.405504,3060.9,3059.1,0.6761]
[1763454920050,0.405504,3060.9,3059.2,0.4887]
[1763454920254,0.90699264,3061.1,3059.2,0.4887]
[1763454920432,0.09083496,3062.6,3059.2,0.4887]
[1763454920433,0.405504,3061.5,3059.2,0.4887]
[1763454920634,0.405504,3061.3,3059.2,0.4887]
[1763454920835,0.90699264,3061.6,3059.2,0.4887]
[1763454921030,0.689504,3061.5,3059.2,0.4887]
[1763454921339,9.10511704,3062.2,3059.2,0.4887]
[1763454921672,0.98350498,3062.0,3059.2,0.4887]
[1763454921831,1.31249664,3061.1,3059.2,0.4887]
[1763454922032,0.90699264,3061.6,3059.2,0.4887]
[1763454922231,8.69099934,3061.2,3059.2,0.4887]
[1763454922466,2.64785093,3062.0,3059.2,0.4887]
[1763454922467,1.31249664,3060.6,3059.2,0.4887]
[1763454922670,0.405504,3060.4,3059.2,0.4887]
[1763454923001,0.405504,3060.4,3059.1,0.1884]
[1763454923203,0.284,3060.3,3059.1,0.1884]
[1763454923409,0.90699264,3060.6,3059.1,0.1884]
[1763454923410,0.405504,3060.2,3059.1,0.1884]
[1763454923582,0.284,3060.1,3059.1,0.1884]
[1763454923795,0.284,3060.0,3059.1,0.1884]
[1763454924093,1.31249664,3060.8,3059.2,0.4887]
[1763454924094,0.284,3059.9,3059.2,0.4887]
[1763454924294,0.284,3059.8,3059.2,0.4887]
[1763454924501,0.284,3059.7,3059.2,0.4887]
[1763454925321,0.284,3059.7,3059.1,0.1884]
[1763454925477,0.405504,3060.7,3059.3,0.4887]
[1763454925818,0.405504,3060.5,3059.3,0.4887]
[1763454926172,0.90699264,3060.8,3059.1,0.1884]
[1763454926173,0.90699264,3060.3,3059.1,0.1884]
[1763454926377,0.284,3060.2,3059.1,0.1884]
[1763454926570,0.284,3060.1,3059.1,0.1884]
[1763454926774,0.405504,3060.7,3058.8,20.46901904]
[1763454927121,0.405504,3060.5,3058.8,20.46901904]
[1763454927500,0.405504,3060.7,3058.9,0.4887]
[1763454927699,0.405504,3060.5,3058.9,0.4887]
[1763454928103,0.405504,3060.7,3058.9,0.4887]
[1763454928408,0.405504,3060.5,3058.9,0.4887]
[1763454928711,0.284,3060.4,3058.9,0.4887]
[1763454928897,0.405504,3060.7,3058.9,0.4887]
[1763454929229,0.405504,3060.4,3058.9,0.4887]
[1763454929727,2.644,3060.3,3058.9,2.5544419]
[1763454929877,2.644,3060.2,3059.0,0.4887]
[1763454930082,0.90699264,3061.2,3059.1,0.1975]
[1763454930320,0.284,3061.1,3059.1,0.1975]
[1763454930526,0.90699264,3061.2,3059.2,0.4887]
[1763454930728,0.90699264,3061.2,3059.1,0.1975]
[1763454930729,0.405504,3060.9,3059.1,0.1975]
[1763454931036,0.284,3061.0,3059.1,0.1975]
[1763454931037,1.31249664,3060.7,3059.1,0.1975]
[1763454931448,2.34582667,3063.2,3060.6,0.1975]
[1763454931742,2.93233197,3063.6,3060.7,0.4887]
[1763454931743,0.9832616,3062.9,3060.7,0.4887]
[1763454931942,0.9832616,3062.9,3061.9,0.1975]
[1763454932109,8.69099934,3064.3,3061.9,0.1975]
[1763454932310,0.284,3062.5,3062.0,0.4887]
[1763454932505,2.93233197,3065.1,3062.0,0.4887]
[1763454932506,1.68796048,3064.9,3062.0,0.4887]
[1763454932720,0.034,3062.5,3062.0,0.4887]
[1763454933750,3.496e-05,3062.6,3062.0,0.4887]
[1763454933916,3.496e-05,3062.6,3062.1,0.03265732]
[1763454934116,0.285,3062.5,3062.3,8.69099934]
[1763454934342,3.496e-05,3062.6,3062.4,0.86909993]
[1763454934546,0.026,3062.5,3061.9,0.1975]
[1763454935067,0.026,3062.5,3062.0,0.4887]
[1763454935343,3.496e-05,3062.6,3062.0,0.4887]
[1763454935563,3.496e-05,3062.6,3062.5,0.1975]
[1763454935917,3.496e-05,3062.6,3062.5,0.6862]
[1763454936314,0.28503496,3062.6,3062.5,0.6862]
[1763454936864,3.496e-05,3062.6,3062.5,0.6862]
[1763454937020,0.28503496,3062.6,3062.5,0.6862]
[1763454937225,0.28503496,3062.6,3062.5,0.679]
[1763454937525,3.496e-05,3062.6,3062.5,0.679]
[1763454937727,0.16403496,3062.6,3062.5,0.679]
[1763454937941,0.28503496,3062.6,3062.5,0.679]
[1763454938369,0.28503496,3062.6,3062.0,0.4815]
[1763454938584,3.496e-05,3062.6,3062.2,0.1808]
[1763454938735,3.496e-05,3062.6,3061.9,0.1975]
[1763454938736,0.285,3062.5,3061.9,0.1975]
[1763454939136,0.285,3062.5,3061.6,0.1808]
[1763454939137,3.26699264,3062.4,3061.6,0.1808]
[1763454939337,0.285,3062.3,3061.6,0.1808]
[1763454939557,0.285,3062.3,3062.2,0.1808]
[1763454939957,0.285,3062.3,3062.2,0.6623]
[1763454940861,0.285,3062.3,3061.6,0.6623]
[1763454941063,0.285,3062.3,3061.7,0.4815]
[1763454941232,0.285,3062.3,3061.6,0.1808]
[1763454941579,0.405504,3062.2,3060.6,0.1975]
[1763454941865,1.31249664,3061.6,3060.3,0.1808]
[1763454942069,0.405504,3061.4,3060.3,0.1808]
[1763454942573,0.405504,3061.2,3060.0,0.4815]
[1763454942860,0.405504,3061.2,3059.7,0.1975]
[1763454942861,0.405504,3061.0,3059.7,0.1975]
[1763454943064,0.405504,3061.0,3059.7,0.679]
[1763454943778,0.90699264,3061.1,3059.8,0.4815]
[1763454943929,0.285,3061.0,3059.8,0.4815]
[1763454944333,0.405504,3061.5,3059.7,0.1975]
[1763454944334,0.285,3060.9,3059.7,0.1975]
[1763454944552,0.285,3060.9,3059.7,0.679]
[1763454944730,0.285,3060.8,3059.7,0.679]
[1763454944932,8.02319107,3061.5,3059.8,0.4815]
[1763454944933,0.285,3060.7,3059.8,0.4815]
[1763454945228,0.285,3060.6,3059.8,0.4815]
[1763454945460,0.405504,3061.2,3059.8,0.4815]
[1763454945678,0.405504,3061.0,3059.8,0.4815]
[1763454946188,0.0546,3061.3,3059.8,0.4815]
[1763454946189,0.286,3060.9,3059.8,0.4815]
[1763454946548,0.405504,3061.2,3059.8,0.4815]
[1763454946797,8.02319107,3060.9,3059.0,0.1818]
[1763454946948,1.31249664,3060.8,3059.1,0.4815]
[1763454947149,1.59849664,3060.8,3059.1,0.4815]
[1763454947885,0.0546,3060.8,3059.1,0.4815]
[1763454948124,0.286,3060.7,3059.1,0.4815]
[1763454948383,0.405504,3061.2,3059.1,0.4815]
[1763454948549,0.286,3060.6,3059.2,0.26795119]
[1763454948747,0.0546,3061.9,3061.1,0.1808]
[1763454948975,0.286,3061.8,3061.1,0.1808]
[1763454949170,3.26699264,3061.7,3060.3,0.4815]
[1763454949409,3.26699264,3061.7,3059.0,3.05831676]
[1763454949410,0.90699264,3061.4,3059.7,0.4815]
[1763454949584,0.405504,3061.3,3059.7,0.4815]
[1763454949789,0.405504,3061.3,3059.3,0.4815]
[1763454949790,0.460104,3061.3,3059.3,0.4815]
[1763454949970,1.31249664,3060.9,3059.3,0.4815]
[1763454950173,0.90699264,3060.9,3059.3,0.4815]
[1763454950360,0.90699264,3060.7,3059.3,0.4815]
[1763454950559,0.405504,3060.6,3059.3,0.4815]
[1763454950761,0.286,3060.5,3059.3,0.4815]
[1763454951290,0.286,3060.4,3059.3,0.4815]
[1763454951485,0.0546,3061.6,3059.3,0.4815]
[1763454951665,0.0546,3061.6,3060.3,0.1808]
[1763454951864,0.286,3061.5,3060.3,0.1808]
[1763454952186,0.0546,3062.1,3060.3,0.6623]
[1763454952375,0.286,3061.8,3060.4,0.4815]
[1763454952575,0.286,3061.7,3060.4,0.4815]
[1763454952885,0.0546,3062.5,3060.4,0.4815]
[1763454953086,0.405504,3062.3,3060.4,0.4815]
[1763454953293,0.286,3061.8,3060.4,0.4815]
[1763454953599,0.0546,3062.4,3060.5,0.03267439]
[1763454953779,0.0546,3062.4,3060.4,0.4815]
[1763454953780,0.286,3062.3,3060.4,0.4815]
[1763454953981,0.3406,3062.3,3060.4,0.4815]
[1763454954184,0.746104,3062.3,3060.4,0.4815]
[1763454954368,0.691504,3062.3,3060.4,0.4815]
[1763454954570,0.405504,3062.1,3060.4,0.4815]
[1763454954778,1.31249664,3062.1,3060.4,0.4815]
[1763454955096,0.0546,3062.0,3060.4,0.4815]
[1763454955885,1.31249664,3062.1,3060.4,0.4815]
[1763454955886,0.405504,3062.1,3060.4,0.4815]
[1763454956195,0.0546,3062.4,3060.3,0.1808]
[1763454956196,8.02319107,3061.7,3060.3,0.1808]
[1763454956492,0.405504,3061.5,3060.3,0.1808]
[1763454957094,0.405504,3061.3,3060.3,0.1808]
[1763454957462,0.405504,3061.1,3059.7,0.4815]
[1763454957661,0.405504,3061.1,3060.1,0.1808]
[1763454958300,0.27559545,3061.1,3060.1,0.1808]
[1763454958502,0.0546,3061.0,3059.7,0.4815]
[1763454958667,0.3406,3061.0,3059.2,0.4815]
[1763454959086,2.4146,3060.9,3059.2,0.4815]
[1763454959407,2.14159264,3060.9,3059.6,0.001]
[1763454959693,0.0546,3060.8,3059.6,0.001]
[1763454959994,0.286,3060.7,3059.6,0.4825]
[1763454960204,0.90699264,3061.1,3059.6,0.4825]
[1763454960360,0.405504,3061.0,3059.6,0.4825]
[1763454960562,0.405504,3060.8,3059.6,0.4825]
[1763454960818,0.285,3060.7,3059.6,0.4825]
[1763454961052,0.0546,3061.3,3059.6,0.4825]
[1763454961251,0.0546,3061.7,3059.6,0.4825]
[1763454961451,0.286,3061.6,3059.6,0.4825]
[1763454961654,0.286,3061.5,3059.6,0.4825]
[1763454962056,0.0546,3061.8,3059.6,0.4825]
[1763454962263,8.02319107,3062.2,3059.6,0.4825]
[1763454962264,8.02319107,3062.2,3059.7,0.03268294]
[1763454962559,0.0546,3062.3,3059.7,0.03268294]
[1763454962762,0.285,3062.2,3059.8,0.4815]
[1763454963124,0.96159264,3062.1,3059.8,0.4815]
[1763454963372,0.405504,3062.0,3059.8,0.4815]
[1763454963525,0.460104,3062.0,3059.8,0.4815]
[1763454963724,0.405504,3061.8,3059.8,0.4815]
[1763454964354,0.90699264,3062.1,3059.8,0.4815]
[1763454964355,0.405504,3061.6,3059.8,0.4815]
[1763454965136,0.405504,3061.4,3059.8,0.4815]
[1763454965335,0.285,3061.3,3059.8,0.4815]
[1763454965530,0.90699264,3061.7,3059.8,0.4815]
[1763454965764,0.405504,3062.1,3059.8,0.4815]
[1763454965966,0.0546,3062.4,3059.9,8.2777827]
[1763454966166,0.0546,3062.4,3059.8,0.4815]
[1763454966167,0.0546,3062.8,3060.4,0.405504]
[1763454966337,0.285,3062.3,3060.5,0.6691]
[1763454966539,0.285,3062.3,3060.6,0.4717]
[1763454966739,0.285,3062.2,3060.6,0.4717]
[1763454967047,0.0546,3062.8,3060.7,0.03267226]
[1763454967367,0.285,3062.1,3061.0,0.1974]
[1763454967572,0.0546,3062.8,3061.0,0.1974]
[1763454967771,0.0546,3062.8,3061.1,0.4717]
[1763454967772,0.285,3062.5,3061.1,0.4717]
[1763454969069,1.18,3062.4,3061.1,0.4717]
[1763454969287,3.26699264,3062.4,3061.1,0.4717]
[1763454969639,5.82672971,3065.3,3062.3,0.1974]
[1763454969640,8.2777827,3063.3,3062.3,0.1974]
[1763454969859,0.285,3063.2,3062.3,0.1974]
[1763454970280,0.285,3063.2,3061.7,0.4717]
[1763454970482,0.405504,3063.1,3061.7,0.4717]